[Event "Titled Tuesday Blitz July 4 Early 2023"]
[White "Sreyas Payyappat"]
[Black "Torres Hernandez, Leslie Carolin"]
[WhiteFideId "46674969"]
[BlackFideId "8400504"]
[WhiteElo "2522"]
[BlackElo "2328"]
[Result "1-0"]
[Round "9"]
[TimeControl "180+2"]
[Date "2023.07.04"]
[WhiteClock "0:01:19"]
[BlackClock "0:00:08"]
[Board "108"]

1. e4 {[%clk 0:03:00]}  e6 {[%clk 0:02:57]} 2. d4 {[%clk 0:03:00]}  d5 {[%clk 0:02:57]} 3. Nc3 {[%clk 0:03:01]}  Bb4 {[%clk 0:02:55]} 4. e5 {[%clk 0:02:59]}  c5 {[%clk 0:02:54]} 5. a3 {[%clk 0:02:59]}  Bxc3+ {[%clk 0:02:55]} 6. bxc3 {[%clk 0:03:00]}  Ne7 {[%clk 0:02:55]} 7. Qg4 {[%clk 0:02:59]}  Qc7 {[%clk 0:02:55]} 8. Qxg7 {[%clk 0:02:58]}  Rg8 {[%clk 0:02:56]} 9. Qxh7 {[%clk 0:02:59]}  cxd4 {[%clk 0:02:57]} 10. Ne2 {[%clk 0:02:58]}  dxc3 {[%clk 0:02:57]} 11. f4 {[%clk 0:02:58]}  Nbc6 {[%clk 0:02:51]} 12. Qd3 {[%clk 0:02:57]}  Bd7 {[%clk 0:02:49]} 13. Be3 {[%clk 0:02:55]}  Rc8 {[%clk 0:02:48]} 14. Nxc3 {[%clk 0:02:49]}  Nxe5 {[%clk 0:02:45]} 15. fxe5 {[%clk 0:02:42]}  Qxc3+ {[%clk 0:02:45]} 16. Qxc3 {[%clk 0:02:42]}  Rxc3 {[%clk 0:02:44]} 17. Kd2 {[%clk 0:02:39]}  Rc8 {[%clk 0:02:40]} 18. Rb1 {[%clk 0:02:29]}  b6 {[%clk 0:02:39]} 19. g3 {[%clk 0:02:24]}  Ba4 {[%clk 0:02:38]} 20. Bd3 {[%clk 0:02:19]}  Nc6 {[%clk 0:02:34]} 21. Bf4 {[%clk 0:02:17]}  Na5 {[%clk 0:02:01]} 22. Rb4 {[%clk 0:02:12]}  Nc4+ {[%clk 0:01:38]} 23. Bxc4 {[%clk 0:02:10]}  Rxc4 {[%clk 0:01:39]} 24. Rxc4 {[%clk 0:02:11]}  dxc4 {[%clk 0:01:39]} 25. h4 {[%clk 0:02:09]}  Bc6 {[%clk 0:01:36]} 26. Rh2 {[%clk 0:02:06]}  Be4 {[%clk 0:01:37]} 27. h5 {[%clk 0:02:06]}  Bf5 {[%clk 0:01:36]} 28. h6 {[%clk 0:02:05]}  Rh8 {[%clk 0:01:33]} 29. Bg5 {[%clk 0:02:03]}  Rh7 {[%clk 0:01:32]} 30. Bf6 {[%clk 0:02:03]}  Kd7 {[%clk 0:01:30]} 31. Bg7 {[%clk 0:02:04]}  Kc6 {[%clk 0:01:27]} 32. Ke3 {[%clk 0:02:04]}  Kd5 {[%clk 0:01:27]} 33. Kf4 {[%clk 0:02:05]}  Bg6 {[%clk 0:01:26]} 34. Kg5 {[%clk 0:01:59]}  c3 {[%clk 0:01:20]} 35. Kf6 {[%clk 0:02:00]}  b5 {[%clk 0:01:11]} 36. Ke7 {[%clk 0:01:59]}  a5 {[%clk 0:01:11]} 37. Kf8 {[%clk 0:01:59]}  b4 {[%clk 0:01:10]} 38. axb4 {[%clk 0:02:00]}  axb4 {[%clk 0:01:11]} 39. Kg8 {[%clk 0:01:51]}  b3 {[%clk 0:00:33]} 40. cxb3 {[%clk 0:01:51]}  c2 {[%clk 0:00:33]} 41. Rxc2 {[%clk 0:01:22]}  Bxc2 {[%clk 0:00:33]} 42. Kxf7 {[%clk 0:01:23]}  Ke4 {[%clk 0:00:25]} 43. b4 {[%clk 0:01:18]}  Kf3 {[%clk 0:00:24]} 44. b5 {[%clk 0:01:19]}  Kxg3 {[%clk 0:00:22]} 45. b6 {[%clk 0:01:19]}  Be4 {[%clk 0:00:23]} 46. Kxe6 {[%clk 0:01:19]}  Kg4 {[%clk 0:00:22]} 47. Kf6 {[%clk 0:01:19]}  Kh5 {[%clk 0:00:08]} 48. e6 {[%clk 0:01:19]} 1-0


[Site "https://www.chess.com"]

[Event "Titled Tuesday Blitz July 4 Early 2023"]
[White "Osinovsky, Stepan"]
[Black "gueraumasague"]
[WhiteFideId "4157354"]
[WhiteElo "2315"]
[BlackElo "2522"]
[Result "0-1"]
[Round "9"]
[TimeControl "180+2"]
[Date "2023.07.04"]
[WhiteClock "0:00:00"]
[BlackClock "0:02:00"]
[Board "109"]

1. f3 {[%clk 0:03:00]}  g6 {[%clk 0:03:00]} 2. e4 {[%clk 0:02:57]}  Bg7 {[%clk 0:03:00]} 3. d4 {[%clk 0:02:51]}  d5 {[%clk 0:03:00]} 4. Be3 {[%clk 0:02:37]}  dxe4 {[%clk 0:02:57]} 5. Nc3 {[%clk 0:02:04]}  exf3 {[%clk 0:02:54]} 6. Qxf3 {[%clk 0:02:03]}  Nf6 {[%clk 0:02:51]} 7. h3 {[%clk 0:01:54]}  c6 {[%clk 0:02:40]} 8. O-O-O {[%clk 0:01:51]}  Qa5 {[%clk 0:02:39]} 9. Kb1 {[%clk 0:01:42]}  Be6 {[%clk 0:02:37]} 10. Nge2 {[%clk 0:01:37]}  Nd5 {[%clk 0:02:22]} 11. Bd2 {[%clk 0:01:37]}  Qb6 {[%clk 0:02:19]} 12. Na4 {[%clk 0:01:08]}  Qc7 {[%clk 0:02:05]} 13. g4 {[%clk 0:00:54]}  Nd7 {[%clk 0:02:01]} 14. c4 {[%clk 0:00:00]}  N5b6 {[%clk 0:02:00]} 0-1


[Site "https://www.chess.com"]

[Event "Titled Tuesday Blitz July 4 Early 2023"]
[White "Skliarov, Viktor"]
[Black "Dobre, Claudiu-Cristian"]
[WhiteFideId "14106736"]
[BlackFideId "1211854"]
[WhiteElo "2591"]
[BlackElo "2448"]
[Result "1-0"]
[Round "9"]
[TimeControl "180+2"]
[Date "2023.07.04"]
[WhiteClock "0:00:18"]
[BlackClock "0:00:06"]
[Board "111"]

1. e4 {[%clk 0:03:00]}  Nc6 {[%clk 0:02:59]} 2. Nc3 {[%clk 0:03:00]}  e5 {[%clk 0:02:58]} 3. Bc4 {[%clk 0:02:59]}  Nf6 {[%clk 0:02:57]} 4. d3 {[%clk 0:02:59]}  Na5 {[%clk 0:02:58]} 5. Nge2 {[%clk 0:02:59]}  Bc5 {[%clk 0:02:57]} 6. O-O {[%clk 0:02:57]}  Nxc4 {[%clk 0:02:40]} 7. dxc4 {[%clk 0:02:56]}  a5 {[%clk 0:02:35]} 8. Ng3 {[%clk 0:02:49]}  d6 {[%clk 0:02:30]} 9. h3 {[%clk 0:02:45]}  O-O {[%clk 0:02:28]} 10. Qf3 {[%clk 0:02:39]}  Be6 {[%clk 0:02:06]} 11. b3 {[%clk 0:02:38]}  Nd7 {[%clk 0:01:57]} 12. Rd1 {[%clk 0:02:24]}  Bd4 {[%clk 0:01:35]} 13. Nge2 {[%clk 0:02:23]}  Bxc3 {[%clk 0:01:32]} 14. Nxc3 {[%clk 0:02:16]}  f5 {[%clk 0:01:32]} 15. exf5 {[%clk 0:02:08]}  Bxf5 {[%clk 0:01:31]} 16. Qxb7 {[%clk 0:02:01]}  Bxc2 {[%clk 0:01:25]} 17. Rd2 {[%clk 0:02:00]}  Bg6 {[%clk 0:01:22]} 18. Nd5 {[%clk 0:01:52]}  Rc8 {[%clk 0:00:58]} 19. Qxc8 {[%clk 0:01:51]}  Qxc8 {[%clk 0:00:58]} 20. Ne7+ {[%clk 0:01:51]}  Kf7 {[%clk 0:00:53]} 21. Nxc8 {[%clk 0:01:52]}  Rxc8 {[%clk 0:00:53]} 22. Ba3 {[%clk 0:01:52]}  Ke6 {[%clk 0:00:51]} 23. Rad1 {[%clk 0:01:48]}  Nf6 {[%clk 0:00:50]} 24. f3 {[%clk 0:01:39]}  Rd8 {[%clk 0:00:39]} 25. Kf2 {[%clk 0:01:35]}  Nh5 {[%clk 0:00:32]} 26. Rd5 {[%clk 0:01:21]}  a4 {[%clk 0:00:32]} 27. b4 {[%clk 0:01:01]}  Rb8 {[%clk 0:00:16]} 28. Ra5 {[%clk 0:00:57]}  Nf4 {[%clk 0:00:14]} 29. b5 {[%clk 0:00:42]}  Bd3 {[%clk 0:00:11]} 30. g3 {[%clk 0:00:38]}  Nxh3+ {[%clk 0:00:10]} 31. Kg2 {[%clk 0:00:35]}  Bf5 {[%clk 0:00:09]} 32. Ra7 {[%clk 0:00:22]}  Rc8 {[%clk 0:00:07]} 33. b6 {[%clk 0:00:19]}  cxb6 {[%clk 0:00:06]} 34. Rxd6# {[%clk 0:00:18]} 1-0


[Site "https://www.chess.com"]

[Event "Titled Tuesday Blitz July 4 Early 2023"]
[White "Philippe, Guillaume"]
[Black "Czerw, Dawid"]
[WhiteFideId "36048763"]
[BlackFideId "1145746"]
[WhiteElo "2424"]
[BlackElo "2576"]
[Result "0-1"]
[Round "9"]
[TimeControl "180+2"]
[Date "2023.07.04"]
[WhiteClock "0:00:10"]
[BlackClock "0:00:05"]
[Board "112"]

1. e4 {[%clk 0:03:00]}  c5 {[%clk 0:02:59]} 2. Nf3 {[%clk 0:03:01]}  Nc6 {[%clk 0:02:59]} 3. d4 {[%clk 0:03:01]}  cxd4 {[%clk 0:03:00]} 4. Nxd4 {[%clk 0:03:02]}  Nf6 {[%clk 0:03:00]} 5. Nc3 {[%clk 0:03:02]}  e5 {[%clk 0:03:00]} 6. Ndb5 {[%clk 0:03:02]}  d6 {[%clk 0:03:00]} 7. Nd5 {[%clk 0:03:03]}  Nxd5 {[%clk 0:03:00]} 8. exd5 {[%clk 0:03:04]}  Nb8 {[%clk 0:03:01]} 9. c4 {[%clk 0:03:04]}  Be7 {[%clk 0:03:01]} 10. c5 {[%clk 0:03:04]}  O-O {[%clk 0:03:00]} 11. Bd3 {[%clk 0:03:02]}  Na6 {[%clk 0:02:39]} 12. cxd6 {[%clk 0:02:52]}  Bxd6 {[%clk 0:02:37]} 13. O-O {[%clk 0:02:14]}  Nc5 {[%clk 0:02:34]} 14. Bc2 {[%clk 0:02:07]}  f5 {[%clk 0:02:32]} 15. Nxd6 {[%clk 0:02:03]}  Qxd6 {[%clk 0:02:31]} 16. b3 {[%clk 0:01:49]}  b6 {[%clk 0:02:27]} 17. Bb2 {[%clk 0:01:41]}  Bb7 {[%clk 0:02:25]} 18. Re1 {[%clk 0:01:39]}  Rae8 {[%clk 0:02:04]} 19. f4 {[%clk 0:01:39]}  exf4 {[%clk 0:01:53]} 20. Qd4 {[%clk 0:01:40]}  Qg6 {[%clk 0:01:39]} 21. Rxe8 {[%clk 0:01:32]}  Rxe8 {[%clk 0:01:40]} 22. Bxf5 {[%clk 0:01:32]}  Qg5 {[%clk 0:01:35]} 23. h4 {[%clk 0:01:25]}  Qg3 {[%clk 0:01:30]} 24. Rf1 {[%clk 0:00:33]}  Re2 {[%clk 0:01:05]} 25. Bh3 {[%clk 0:00:33]}  Ne4 {[%clk 0:00:53]} 26. Rxf4 {[%clk 0:00:23]}  Re1+ {[%clk 0:00:22]} 27. Rf1 {[%clk 0:00:22]}  Rxf1+ {[%clk 0:00:22]} 28. Kxf1 {[%clk 0:00:23]}  Nf6 {[%clk 0:00:20]} 29. Be6+ {[%clk 0:00:20]}  Kf8 {[%clk 0:00:19]} 30. Ba3+ {[%clk 0:00:16]}  Ke8 {[%clk 0:00:19]} 31. Qa4+ {[%clk 0:00:16]}  Kd8 {[%clk 0:00:16]} 32. Qxa7 {[%clk 0:00:13]}  Qf4+ {[%clk 0:00:09]} 33. Ke2 {[%clk 0:00:13]}  Qe4+ {[%clk 0:00:07]} 34. Kd2 {[%clk 0:00:13]}  Qd4+ {[%clk 0:00:07]} 35. Kc2 {[%clk 0:00:13]}  Qf2+ {[%clk 0:00:05]} 36. Kc3 {[%clk 0:00:14]}  Qe3+ {[%clk 0:00:04]} 37. Kb4 {[%clk 0:00:07]}  Qc5+ {[%clk 0:00:03]} 38. Ka4 {[%clk 0:00:08]}  b5+ {[%clk 0:00:03]} 39. Ka5 {[%clk 0:00:09]}  Qxa7+ {[%clk 0:00:03]} 40. Kb4 {[%clk 0:00:09]}  Nxd5+ {[%clk 0:00:02]} 41. Kxb5 {[%clk 0:00:08]}  Nc7+ {[%clk 0:00:02]} 42. Kc4 {[%clk 0:00:08]}  Nxe6 {[%clk 0:00:03]} 43. b4 {[%clk 0:00:09]}  Qd4+ {[%clk 0:00:03]} 44. Kb3 {[%clk 0:00:09]}  Bd5+ {[%clk 0:00:03]} 45. Ka4 {[%clk 0:00:10]}  Qc4 {[%clk 0:00:03]} 46. Ka5 {[%clk 0:00:09]}  Bc6 {[%clk 0:00:03]} 47. Kb6 {[%clk 0:00:10]}  Qb5+ {[%clk 0:00:04]} 48. Ka7 {[%clk 0:00:10]}  Qb7# {[%clk 0:00:05]} 0-1


[Site "https://www.chess.com"]

[Event "Titled Tuesday Blitz July 4 Early 2023"]
[White "lagarto93"]
[Black "Ncatt"]
[WhiteElo "2529"]
[BlackElo "2411"]
[Result "1-0"]
[Round "9"]
[TimeControl "180+2"]
[Date "2023.07.04"]
[WhiteClock "0:02:13"]
[BlackClock "0:02:26"]
[Board "116"]

1. e4 {[%clk 0:03:00]}  g6 {[%clk 0:02:58]} 2. d4 {[%clk 0:03:00]}  Bg7 {[%clk 0:02:58]} 3. Nc3 {[%clk 0:03:01]}  a6 {[%clk 0:02:59]} 4. Be3 {[%clk 0:03:01]}  b5 {[%clk 0:02:59]} 5. Qd2 {[%clk 0:03:01]}  Bb7 {[%clk 0:02:59]} 6. f3 {[%clk 0:03:01]}  d6 {[%clk 0:02:59]} 7. a4 {[%clk 0:02:59]}  b4 {[%clk 0:02:58]} 8. Nd1 {[%clk 0:02:59]}  a5 {[%clk 0:02:57]} 9. c3 {[%clk 0:02:59]}  bxc3 {[%clk 0:02:57]} 10. Nxc3 {[%clk 0:02:56]}  Nd7 {[%clk 0:02:54]} 11. Bb5 {[%clk 0:02:55]}  c6 {[%clk 0:02:52]} 12. Bd3 {[%clk 0:02:54]}  Ngf6 {[%clk 0:02:53]} 13. Nge2 {[%clk 0:02:54]}  e5 {[%clk 0:02:53]} 14. O-O {[%clk 0:02:53]}  O-O {[%clk 0:02:52]} 15. Kh1 {[%clk 0:02:37]}  d5 {[%clk 0:02:52]} 16. exd5 {[%clk 0:02:36]}  cxd5 {[%clk 0:02:51]} 17. Bh6 {[%clk 0:02:33]}  e4 {[%clk 0:02:50]} 18. Bb5 {[%clk 0:02:29]}  Qe7 {[%clk 0:02:41]} 19. Bxg7 {[%clk 0:02:29]}  Kxg7 {[%clk 0:02:42]} 20. Ng3 {[%clk 0:02:17]}  h5 {[%clk 0:02:38]} 21. Qg5 {[%clk 0:02:15]}  Rh8 {[%clk 0:02:31]} 22. Nf5+ {[%clk 0:02:12]}  Kf8 {[%clk 0:02:26]} 23. Nxe7 {[%clk 0:02:13]} 1-0


[Site "https://www.chess.com"]

[Event "Titled Tuesday Blitz July 4 Early 2023"]
[White "Ljukin, Sergei"]
[Black "Petrova, Irina"]
[WhiteFideId "14102200"]
[BlackFideId "14124122"]
[WhiteElo "2517"]
[BlackElo "2368"]
[Result "0-1"]
[Round "9"]
[TimeControl "180+2"]
[Date "2023.07.04"]
[WhiteClock "0:00:00"]
[BlackClock "0:00:08"]
[Board "118"]

1. e4 {[%clk 0:02:55]}  e5 {[%clk 0:02:58]} 2. Nf3 {[%clk 0:02:55]}  Nc6 {[%clk 0:02:57]} 3. Bb5 {[%clk 0:02:55]}  a6 {[%clk 0:02:56]} 4. Ba4 {[%clk 0:02:55]}  Nf6 {[%clk 0:02:56]} 5. Qe2 {[%clk 0:02:55]}  b5 {[%clk 0:02:52]} 6. Bb3 {[%clk 0:02:55]}  Bc5 {[%clk 0:02:50]} 7. c3 {[%clk 0:02:55]}  O-O {[%clk 0:02:49]} 8. d3 {[%clk 0:02:56]}  d6 {[%clk 0:02:47]} 9. Bg5 {[%clk 0:02:56]}  h6 {[%clk 0:02:47]} 10. Bh4 {[%clk 0:02:56]}  Be6 {[%clk 0:02:35]} 11. Bd5 {[%clk 0:02:46]}  Bxd5 {[%clk 0:02:24]} 12. exd5 {[%clk 0:02:46]}  Nb8 {[%clk 0:02:22]} 13. Nbd2 {[%clk 0:02:39]}  Nbd7 {[%clk 0:02:21]} 14. O-O-O {[%clk 0:02:13]}  Qb8 {[%clk 0:02:16]} 15. g4 {[%clk 0:02:08]}  Nxd5 {[%clk 0:02:13]} 16. g5 {[%clk 0:02:09]}  Nf4 {[%clk 0:02:11]} 17. Qe4 {[%clk 0:01:53]}  h5 {[%clk 0:01:56]} 18. d4 {[%clk 0:01:51]}  Bb6 {[%clk 0:01:49]} 19. Bg3 {[%clk 0:01:43]}  f5 {[%clk 0:01:37]} 20. Qc2 {[%clk 0:01:41]}  Ne2+ {[%clk 0:01:30]} 21. Kb1 {[%clk 0:01:40]}  e4 {[%clk 0:01:29]} 22. Nh4 {[%clk 0:01:34]}  b4 {[%clk 0:01:09]} 23. Nxe4 {[%clk 0:01:30]}  Nxc3+ {[%clk 0:01:07]} 24. Nxc3 {[%clk 0:01:28]}  bxc3 {[%clk 0:01:07]} 25. Qxc3 {[%clk 0:01:28]}  f4 {[%clk 0:00:58]} 26. Qc4+ {[%clk 0:00:39]}  Kh7 {[%clk 0:00:56]} 27. g6+ {[%clk 0:00:39]}  Kh8 {[%clk 0:00:52]} 28. Qe2 {[%clk 0:00:29]}  f3 {[%clk 0:00:47]} 29. Qd3 {[%clk 0:00:19]}  Nf6 {[%clk 0:00:42]} 30. Qxf3 {[%clk 0:00:14]}  Qe8 {[%clk 0:00:27]} 31. Qd3 {[%clk 0:00:12]}  Rb8 {[%clk 0:00:22]} 32. Rhe1 {[%clk 0:00:12]}  Qa4 {[%clk 0:00:21]} 33. Qc2 {[%clk 0:00:11]}  Qb5 {[%clk 0:00:21]} 34. Re3 {[%clk 0:00:10]}  Ba7 {[%clk 0:00:11]} 35. Rb3 {[%clk 0:00:10]}  Qd7 {[%clk 0:00:09]} 36. Rxb8 {[%clk 0:00:10]}  Rxb8 {[%clk 0:00:10]} 37. a3 {[%clk 0:00:10]}  Qb5 {[%clk 0:00:09]} 38. Rd3 {[%clk 0:00:09]}  Ne4 {[%clk 0:00:06]} 39. Ka1 {[%clk 0:00:05]}  Qb7 {[%clk 0:00:06]} 40. Rb3 {[%clk 0:00:04]}  Qxb3 {[%clk 0:00:05]} 41. Qxb3 {[%clk 0:00:02]}  Rxb3 {[%clk 0:00:06]} 42. Nf5 {[%clk 0:00:02]}  Nxg3 {[%clk 0:00:06]} 43. hxg3 {[%clk 0:00:03]}  Rf3 {[%clk 0:00:06]} 44. Ne7 {[%clk 0:00:02]}  Rxf2 {[%clk 0:00:07]} 45. Nd5 {[%clk 0:00:02]}  Bxd4 {[%clk 0:00:07]} 46. Nxc7 {[%clk 0:00:03]}  Bxb2+ {[%clk 0:00:07]} 47. Kb1 {[%clk 0:00:02]}  Be5 {[%clk 0:00:08]} 48. Ne6 {[%clk 0:00:02]}  Rf3 {[%clk 0:00:08]} 49. Ng5 {[%clk 0:00:01]}  Rxg3 {[%clk 0:00:07]} 50. Nf7+ {[%clk 0:00:00]}  Kg8 {[%clk 0:00:08]} 0-1


[Site "https://www.chess.com"]

[Event "Titled Tuesday Blitz July 4 Early 2023"]
[White "Shuvalov, Evgenij"]
[Black "Omariev, Maksim"]
[WhiteFideId "4187237"]
[BlackFideId "4193423"]
[WhiteElo "2512"]
[BlackElo "2434"]
[Result "0-1"]
[Round "9"]
[TimeControl "180+2"]
[Date "2023.07.04"]
[WhiteClock "0:00:34"]
[BlackClock "0:01:47"]
[Board "119"]

1. d4 {[%clk 0:03:00]}  h5 {[%clk 0:02:56]} 2. c4 {[%clk 0:02:59]}  h4 {[%clk 0:02:57]} 3. e4 {[%clk 0:02:57]}  d6 {[%clk 0:02:58]} 4. h3 {[%clk 0:02:56]}  e5 {[%clk 0:02:58]} 5. Nf3 {[%clk 0:02:54]}  Nc6 {[%clk 0:02:58]} 6. d5 {[%clk 0:02:52]}  Nb8 {[%clk 0:02:57]} 7. Nc3 {[%clk 0:02:48]}  a5 {[%clk 0:02:53]} 8. Be3 {[%clk 0:02:47]}  Na6 {[%clk 0:02:49]} 9. Be2 {[%clk 0:02:40]}  Be7 {[%clk 0:02:49]} 10. Qc2 {[%clk 0:02:32]}  Nf6 {[%clk 0:02:49]} 11. Nd2 {[%clk 0:02:30]}  Nc5 {[%clk 0:02:40]} 12. a3 {[%clk 0:02:15]}  Bd7 {[%clk 0:02:31]} 13. b3 {[%clk 0:02:13]}  Nh5 {[%clk 0:02:21]} 14. Bxh5 {[%clk 0:02:09]}  Rxh5 {[%clk 0:02:21]} 15. O-O {[%clk 0:01:34]}  Bg5 {[%clk 0:02:20]} 16. b4 {[%clk 0:01:29]}  Bxe3 {[%clk 0:02:14]} 17. fxe3 {[%clk 0:01:29]}  axb4 {[%clk 0:02:15]} 18. axb4 {[%clk 0:01:30]}  Rxa1 {[%clk 0:02:16]} 19. Rxa1 {[%clk 0:01:30]}  Na6 {[%clk 0:02:17]} 20. Qb3 {[%clk 0:01:21]}  Qg5 {[%clk 0:02:11]} 21. Nf3 {[%clk 0:01:09]}  Qxe3+ {[%clk 0:02:09]} 22. Kh1 {[%clk 0:01:09]}  Bxh3 {[%clk 0:02:03]} 23. Re1 {[%clk 0:01:01]}  Bxg2+ {[%clk 0:01:47]} 24. Kxg2 {[%clk 0:01:02]}  h3+ {[%clk 0:01:48]} 25. Kg3 {[%clk 0:00:40]}  Rg5+ {[%clk 0:01:48]} 26. Kh4 {[%clk 0:00:35]}  Qf4+ {[%clk 0:01:47]} 27. Kxh3 {[%clk 0:00:34]}  Qg3# {[%clk 0:01:47]} 0-1


[Site "https://www.chess.com"]

[Event "Titled Tuesday Blitz July 4 Early 2023"]
[White "VoicelessFeather"]
[Black "Kovalevsky, Stanislav"]
[BlackFideId "13508598"]
[WhiteElo "2233"]
[BlackElo "2482"]
[Result "0-1"]
[Round "9"]
[TimeControl "180+2"]
[Date "2023.07.04"]
[WhiteClock "0:01:30"]
[BlackClock "0:02:18"]
[Board "121"]

1. e4 {[%clk 0:03:00]}  e6 {[%clk 0:03:00]} 2. d4 {[%clk 0:03:00]}  d5 {[%clk 0:03:00]} 3. Nd2 {[%clk 0:03:00]}  dxe4 {[%clk 0:03:00]} 4. Nxe4 {[%clk 0:03:01]}  Nf6 {[%clk 0:03:01]} 5. Nxf6+ {[%clk 0:02:56]}  gxf6 {[%clk 0:03:01]} 6. Be3 {[%clk 0:02:52]}  Nc6 {[%clk 0:03:01]} 7. Bb5 {[%clk 0:02:50]}  Bd7 {[%clk 0:03:01]} 8. Qd2 {[%clk 0:02:44]}  Ne7 {[%clk 0:03:00]} 9. Bc4 {[%clk 0:02:37]}  Bc6 {[%clk 0:02:56]} 10. Nf3 {[%clk 0:02:36]}  Rg8 {[%clk 0:02:56]} 11. O-O-O {[%clk 0:02:32]}  Rxg2 {[%clk 0:02:55]} 12. Qe2 {[%clk 0:02:24]}  Qd6 {[%clk 0:02:48]} 13. Kb1 {[%clk 0:02:14]}  O-O-O {[%clk 0:02:47]} 14. Rhg1 {[%clk 0:02:04]}  Rxg1 {[%clk 0:02:31]} 15. Rxg1 {[%clk 0:02:05]}  Nf5 {[%clk 0:02:31]} 16. Bd3 {[%clk 0:01:49]}  Qd5 {[%clk 0:02:22]} 17. Nd2 {[%clk 0:01:35]}  Nxd4 {[%clk 0:02:19]} 18. Qh5 {[%clk 0:01:30]}  Qxh5 {[%clk 0:02:18]} 0-1


[Site "https://www.chess.com"]

[Event "Titled Tuesday Blitz July 4 Early 2023"]
[White "Tinmaz, Kerem"]
[Black "Girya, Olga"]
[WhiteFideId "44559151"]
[BlackFideId "4195752"]
[WhiteElo "2385"]
[BlackElo "2589"]
[Result "1-0"]
[Round "9"]
[TimeControl "180+2"]
[Date "2023.07.04"]
[WhiteClock "0:00:05"]
[BlackClock "0:00:03"]
[Board "123"]

1. e4 {[%clk 0:03:00]}  e5 {[%clk 0:02:59]} 2. Nf3 {[%clk 0:03:00]}  Nc6 {[%clk 0:03:00]} 3. Bb5 {[%clk 0:03:00]}  a6 {[%clk 0:03:00]} 4. Bxc6 {[%clk 0:03:00]}  dxc6 {[%clk 0:03:00]} 5. O-O {[%clk 0:03:01]}  Qf6 {[%clk 0:03:00]} 6. d4 {[%clk 0:02:58]}  exd4 {[%clk 0:03:00]} 7. Bg5 {[%clk 0:02:58]}  Qd6 {[%clk 0:03:00]} 8. Nxd4 {[%clk 0:02:57]}  Be7 {[%clk 0:02:58]} 9. Be3 {[%clk 0:02:46]}  Nf6 {[%clk 0:02:56]} 10. Nd2 {[%clk 0:02:33]}  c5 {[%clk 0:02:45]} 11. Nc4 {[%clk 0:02:08]}  Qd8 {[%clk 0:02:45]} 12. Nf5 {[%clk 0:02:01]}  Bxf5 {[%clk 0:02:39]} 13. exf5 {[%clk 0:02:02]}  Qd5 {[%clk 0:02:32]} 14. Qxd5 {[%clk 0:01:28]}  Nxd5 {[%clk 0:02:33]} 15. Rfe1 {[%clk 0:01:13]}  O-O-O {[%clk 0:02:32]} 16. Rad1 {[%clk 0:01:07]}  Nb4 {[%clk 0:01:38]} 17. c3 {[%clk 0:00:35]}  Nc2 {[%clk 0:01:38]} 18. Rxd8+ {[%clk 0:00:28]}  Rxd8 {[%clk 0:01:38]} 19. Rc1 {[%clk 0:00:29]}  Nxe3 {[%clk 0:01:16]} 20. fxe3 {[%clk 0:00:26]}  Bg5 {[%clk 0:00:46]} 21. Re1 {[%clk 0:00:17]}  f6 {[%clk 0:00:24]} 22. Re2 {[%clk 0:00:09]}  b5 {[%clk 0:00:22]} 23. Na5 {[%clk 0:00:06]}  c4 {[%clk 0:00:22]} 24. Nc6 {[%clk 0:00:05]}  Rd1+ {[%clk 0:00:17]} 25. Kf2 {[%clk 0:00:06]}  Kd7 {[%clk 0:00:17]} 26. Nd4 {[%clk 0:00:05]}  Bh6 {[%clk 0:00:06]} 27. Nf3 {[%clk 0:00:05]}  Ra1 {[%clk 0:00:03]} 28. a3 {[%clk 0:00:05]}  Kd6 {[%clk 0:00:04]} 29. Rd2+ {[%clk 0:00:05]}  Kc6 {[%clk 0:00:04]} 30. h4 {[%clk 0:00:04]}  Rb1 {[%clk 0:00:05]} 31. g4 {[%clk 0:00:04]}  g6 {[%clk 0:00:04]} 32. g5 {[%clk 0:00:04]}  fxg5 {[%clk 0:00:05]} 33. hxg5 {[%clk 0:00:05]}  Bg7 {[%clk 0:00:05]} 34. f6 {[%clk 0:00:05]}  Bf8 {[%clk 0:00:06]} 35. Ne5+ {[%clk 0:00:06]}  Kb7 {[%clk 0:00:05]} 36. Rd8 {[%clk 0:00:06]}  Bc5 {[%clk 0:00:05]} 37. f7 {[%clk 0:00:05]}  Rxb2+ {[%clk 0:00:05]} 38. Kf3 {[%clk 0:00:06]}  Rb3 {[%clk 0:00:05]} 39. Nd7 {[%clk 0:00:04]}  Bxa3 {[%clk 0:00:05]} 40. f8=Q {[%clk 0:00:05]}  Bxf8 {[%clk 0:00:05]} 41. Rxf8 {[%clk 0:00:04]}  Rxc3 {[%clk 0:00:05]} 42. Nc5+ {[%clk 0:00:04]}  Kb6 {[%clk 0:00:04]} 43. Nd7+ {[%clk 0:00:04]}  Kc6 {[%clk 0:00:03]} 44. Ne5+ {[%clk 0:00:03]}  Kb7 {[%clk 0:00:04]} 45. Rf7 {[%clk 0:00:02]}  b4 {[%clk 0:00:03]} 46. Nd7 {[%clk 0:00:01]}  b3 {[%clk 0:00:02]} 47. Nc5+ {[%clk 0:00:01]}  Kb6 {[%clk 0:00:01]} 48. Na4+ {[%clk 0:00:01]}  Ka5 {[%clk 0:00:01]} 49. Nxc3 {[%clk 0:00:02]}  Kb4 {[%clk 0:00:02]} 50. Nd5+ {[%clk 0:00:02]}  Ka3 {[%clk 0:00:02]} 51. Rxc7 {[%clk 0:00:02]}  b2 {[%clk 0:00:02]} 52. Rb7 {[%clk 0:00:02]}  Ka2 {[%clk 0:00:02]} 53. Nc3+ {[%clk 0:00:02]}  Ka1 {[%clk 0:00:03]} 54. Ra7 {[%clk 0:00:02]}  b1=Q {[%clk 0:00:02]} 55. Nxb1 {[%clk 0:00:03]}  Kxb1 {[%clk 0:00:02]} 56. Rxa6 {[%clk 0:00:03]}  c3 {[%clk 0:00:03]} 57. Rc6 {[%clk 0:00:04]}  c2 {[%clk 0:00:03]} 58. e4 {[%clk 0:00:03]}  c1=Q {[%clk 0:00:03]} 59. Rxc1+ {[%clk 0:00:04]}  Kxc1 {[%clk 0:00:04]} 60. e5 {[%clk 0:00:05]}  Kd2 {[%clk 0:00:03]} 61. e6 {[%clk 0:00:05]} 1-0


[Site "https://www.chess.com"]

[Event "Titled Tuesday Blitz July 4 Early 2023"]
[White "Vlassov, Nikolai"]
[Black "Wartiovaara, Oliver"]
[WhiteFideId "4103360"]
[BlackFideId "513024"]
[WhiteElo "2589"]
[BlackElo "2382"]
[Result "1-0"]
[Round "9"]
[TimeControl "180+2"]
[Date "2023.07.04"]
[WhiteClock "0:01:21"]
[BlackClock "0:01:51"]
[Board "124"]

1. e4 {[%clk 0:03:00]}  e6 {[%clk 0:02:47]} 2. c4 {[%clk 0:03:00]}  d5 {[%clk 0:02:47]} 3. cxd5 {[%clk 0:03:00]}  exd5 {[%clk 0:02:47]} 4. Qb3 {[%clk 0:03:00]}  dxe4 {[%clk 0:02:39]} 5. Bc4 {[%clk 0:02:59]}  Be6 {[%clk 0:02:26]} 6. Bxe6 {[%clk 0:02:58]}  fxe6 {[%clk 0:02:27]} 7. Qxb7 {[%clk 0:02:56]}  Nd7 {[%clk 0:02:27]} 8. Qxe4 {[%clk 0:02:55]}  Ngf6 {[%clk 0:02:26]} 9. Qxe6+ {[%clk 0:02:54]}  Be7 {[%clk 0:02:25]} 10. d4 {[%clk 0:02:50]}  c5 {[%clk 0:02:22]} 11. Nf3 {[%clk 0:02:37]}  cxd4 {[%clk 0:02:20]} 12. O-O {[%clk 0:02:28]}  Nc5 {[%clk 0:02:20]} 13. Qc6+ {[%clk 0:02:27]}  Kf7 {[%clk 0:02:19]} 14. b4 {[%clk 0:01:53]}  Ncd7 {[%clk 0:02:05]} 15. Ng5+ {[%clk 0:01:50]}  Kg6 {[%clk 0:02:00]} 16. Qc2+ {[%clk 0:01:31]}  Kh5 {[%clk 0:01:57]} 17. Ne6 {[%clk 0:01:27]}  Qc8 {[%clk 0:01:51]} 18. Qf5+ {[%clk 0:01:21]} 1-0


[Site "https://www.chess.com"]